bitfinex/quotes_ETHUSD_20251230
["timestamp","ask_amount","ask_price","bid_price","bid_amount"]
[1767101094587,2.3609,2986.3,2985.9,0.001]
[1767101097994,2.3609,2986.3,2985.5,0.001]
[1767101098196,4.89698776,2986.8,2985.7,0.001]
[1767101098197,2.2569,2986.8,2985.7,0.001]
[1767101098416,2.2569,2986.5,2985.8,0.001]
[1767101100888,2.2569,2986.5,2985.8,0.03449186]
[1767101101088,2.2569,2986.5,2985.9,0.001]
[1767101101289,3.1359,2986.5,2985.9,0.001]
[1767101102798,2.2569,2986.5,2985.9,0.001]
[1767101103000,3.1359,2986.5,2985.9,0.001]
[1767101105494,3.78432129,2986.5,2985.9,0.001]
[1767101107908,2.2569,2986.4,2985.9,0.001]
[1767101111000,2.2569,2986.3,2985.9,0.001]
[1767101111319,2.2569,2986.3,2985.9,0.002]
[1767101115300,2.2569,2986.3,2985.9,0.001]
[1767101115986,4.87787792,2986.5,2985.9,0.001]
[1767101115987,2.2569,2986.2,2985.9,0.001]
[1767101116188,3.3195,2986.4,2986.0,0.001]
[1767101116616,0.002,2987.0,2986.3,4.89698776]
[1767101116803,0.002,2987.0,2986.5,4.89698776]
[1767101117006,0.002,2987.0,2986.6,0.48969878]
[1767101117412,0.002,2987.0,2986.3,4.89698776]
[1767101117919,0.002,2987.0,2986.5,4.89698776]
[1767101118791,0.002,2987.0,2986.7,4.89698776]
[1767101119118,0.002,2987.2,2986.7,4.89698776]
[1767101120121,0.002,2987.0,2986.7,4.89698776]
[1767101120326,0.002,2987.2,2986.8,1.15935658]
[1767101120641,0.002,2987.2,2986.6,6.69657804]
[1767101120642,2.4425,2987.2,2986.6,3.34828902]
[1767101120916,0.002,2987.2,2986.4,11.59401428]
[1767101122521,2.4405,2987.8,2987.0,4.89698776]
[1767101123018,2.4405,2987.8,2986.8,4.89698776]
[1767101123219,2.4405,2987.7,2986.9,0.48969878]
[1767101123515,2.4405,2987.7,2986.5,0.03348401]
[1767101123516,2.4405,2987.7,2986.7,0.879]
[1767101123715,2.4405,2987.7,2986.7,0.03348176]
[1767101124520,2.4405,2987.7,2986.8,3.34806481]
[1767101124717,2.4405,2987.7,2986.8,11.59311738]
[1767101124924,3.3195,2987.9,2987.0,4.89698776]
[1767101125118,3.98611556,2987.9,2987.0,4.89698776]
[1767101126723,3.10711556,2987.9,2987.1,3.34772856]
[1767101127123,0.66661556,2987.9,2987.1,3.34772856]
[1767101127426,2.4405,2987.8,2986.9,3.34789196]
[1767101128094,2.4405,2987.8,2987.0,3.34783809]
[1767101128319,0.002,2987.9,2987.0,7.85496778]
[1767101128524,2.4425,2989.4,2987.8,9.78578284]
[1767101128831,0.16625079,2991.3,2990.5,0.974906]
[1767101128832,0.87249827,2991.3,2990.5,0.974906]
[1767101129028,0.879,2991.7,2989.9,5.77189142]
[1767101129029,6.68635478,2991.2,2989.9,5.77189142]
[1767101129228,6.68635478,2991.2,2990.2,10.082488]
[1767101129229,0.66863548,2991.1,2990.2,10.082488]
[1767101129802,2.4405,2991.0,2990.2,10.082488]
[1767101129997,2.4405,2991.0,2990.2,7.582488]
[1767101130204,2.4405,2991.0,2990.2,5.082488]
[1767101130601,3.3434752,2990.9,2989.9,2.3493]
[1767101130838,2.77484752,2990.8,2989.9,2.3493]
[1767101131028,2.77484752,2990.8,2990.2,2.582488]
[1767101131235,2.77484752,2990.8,2990.2,1e-08]
[1767101131443,2.77484752,2990.8,2989.8,0.03378569]
[1767101132102,0.013,2990.5,2989.1,2.33629863]
[1767101132332,0.013,2990.3,2989.1,2.33629863]
[1767101132829,6.6885158,2990.2,2989.1,2.33629863]
[1767101133136,0.013,2990.0,2989.1,2.33629863]
[1767101134805,3.34369879,2990.7,2989.2,0.878]
[1767101135005,3.34369879,2990.7,2989.3,2.3493]
[1767101135325,0.013,2990.6,2989.3,2.3493]
[1767101135535,0.013,2990.6,2989.2,7.56865331]
[1767101135710,0.68503976,2990.5,2989.3,2.3493]
[1767101136943,0.68503976,2990.5,2989.5,2.3493]
[1767101137306,3.34403424,2990.4,2989.5,2.3493]
[1767101137632,4.02900299,2990.5,2989.5,2.3493]
[1767101137801,4.02900299,2990.5,2989.6,2.3493]
[1767101138008,0.4029003,2990.4,2989.6,2.3493]
[1767101138209,0.015,2990.3,2989.6,2.3493]
[1767101138730,0.4029003,2990.4,2989.6,2.3493]
[1767101138908,0.015,2991.1,2989.6,2.3493]
[1767101139109,0.002,2991.2,2990.1,2.3493]
[1767101139318,0.002,2991.2,2990.4,2.3493]
[1767101139549,0.00850036,2991.7,2990.4,2.3493]
[1767101139706,0.33509818,2991.6,2990.5,2.3493]
[1767101139910,0.0105,2991.5,2990.5,2.3493]
[1767101140213,0.33509818,2991.6,2990.3,3.34414607]
[1767101140214,0.3456,2991.6,2990.3,2.3493]
[1767101140411,3.34258931,2991.7,2990.3,2.3493]
[1767101140412,0.3456,2991.4,2990.3,2.3493]
[1767101141135,0.36881893,2991.5,2990.3,2.3493]
[1767101141351,0.3456,2991.4,2990.5,2.3493]
[1767101141642,0.3456,2991.3,2990.0,2.3493]
[1767101142435,0.3456,2991.3,2989.8,3.34467287]
[1767101142641,0.3456,2991.3,2989.8,2.38274705]
[1767101142838,0.3456,2991.3,2989.3,2.3493]
[1767101143134,0.3456,2991.1,2989.5,2.3493]
[1767101143334,0.3456,2990.7,2989.5,2.3493]
[1767101143537,6.687174,2990.8,2989.7,2.3493]
[1767101143538,0.3456,2990.5,2989.7,2.3493]
[1767101144037,0.3456,2990.5,2989.4,0.03345152]
[1767101144038,0.3456,2990.3,2989.4,2.3493]
[1767101144837,0.7032774,2990.6,2989.1,2.3493]
[1767101144838,0.3456,2990.1,2989.1,2.3493]
[1767101145634,0.3456,2989.9,2989.1,2.3493]
[1767101146840,0.3456,2989.9,2989.0,0.033456]
[1767101146841,0.3456,2989.9,2988.9,2.3158]
[1767101147012,0.3456,2989.7,2988.9,2.3158]
[1767101147337,0.3456,2989.6,2988.5,2.3158]
[1767101147638,3.34504097,2989.5,2988.5,2.3158]
[1767101147842,0.3456,2989.4,2988.5,2.3158]
[1767101148040,3.34504097,2989.5,2988.5,2.3158]
[1767101148339,0.3456,2989.3,2988.5,2.3158]
[1767101149106,0.3456,2989.3,2988.6,0.03346048]
[1767101149340,0.3456,2989.2,2988.5,2.3158]
[1767101149834,0.878,2989.3,2988.5,3.34612108]
[1767101150040,0.878,2989.3,2988.6,2.3158]
[1767101150242,1.36720382,2989.3,2988.6,2.3158]
[1767101150943,0.3456,2989.2,2988.6,2.3158]
[1767101152144,0.3642,2989.1,2988.2,2.29629482]
[1767101152743,0.3642,2989.1,2987.8,2.3158]
[1767101153818,0.3642,2988.9,2987.4,2.3158]
[1767101154035,10.03680159,2989.0,2987.4,2.3158]
[1767101154036,0.3642,2988.7,2987.4,2.3158]
[1767101154232,0.3642,2988.7,2987.5,2.3492728]
[1767101154450,0.878,2988.8,2987.3,0.001]
[1767101154451,0.3642,2988.5,2987.3,0.001]
[1767101154725,0.3642,2988.3,2987.3,0.001]
[1767101154921,0.3642,2988.1,2987.3,0.001]
[1767101155829,0.878,2988.2,2987.3,2.3168]
[1767101156544,0.3642,2988.3,2987.5,2.3158]
[1767101156752,3.71059292,2988.3,2987.7,2.3158]
[1767101156952,0.79348852,2988.2,2987.7,2.3158]
[1767101157541,0.3642,2988.1,2987.4,2.3158]
[1767101158226,3.34627225,2988.4,2987.6,2.3158]
[1767101159164,0.3642,2988.9,2987.6,2.3158]
[1767101159330,0.3642,2988.9,2987.8,2.3158]
[1767101159662,0.37098005,2988.8,2987.8,2.55072706]
[1767101160438,0.3642,2988.7,2987.8,2.3158]
[1767101161544,0.3642,2988.7,2987.4,2.3158]
[1767101161726,0.3642,2988.5,2987.4,2.3158]
[1767101161927,0.3642,2988.5,2987.3,0.001]
[1767101162179,6.6925445,2988.4,2987.3,0.001]
[1767101162337,0.3642,2988.2,2987.3,2.4522]
[1767101162655,3.71680446,2988.8,2987.3,2.4522]
[1767101162656,0.3642,2989.4,2987.5,2.4512]
[1767101162823,0.3642,2989.4,2987.7,2.4512]
[1767101163146,0.3642,2989.4,2987.9,2.4512]
[1767101163349,0.3642,2989.2,2988.0,0.0334672]
[1767101163548,0.3642,2989.5,2988.1,2.4512]
[1767101163738,0.3642,2989.5,2988.3,2.4512]
[1767101163922,0.3642,2989.5,2988.4,2.4512]
[1767101164346,3.34515287,2989.4,2988.4,2.4512]
[1767101164550,2.3534,2989.0,2987.5,0.01007201]
[1767101164750,2.3534,2989.0,2987.7,2.4512]
[1767101166742,2.3534,2988.9,2987.7,3.3470474]
[1767101167041,3.34563709,2989.0,2987.8,2.48466944]
[1767101168554,4.22352542,2989.1,2987.8,2.48466944]
[1767101168750,0.99223331,2989.0,2988.0,2.4512]
[1767101168940,0.99223331,2989.0,2988.2,2.4512]
[1767101169142,3.34542412,2989.2,2988.2,2.4512]
[1767101169531,0.002,2989.1,2988.2,2.4512]
[1767101169723,0.002,2989.1,2988.3,2.4512]
[1767101169724,2.3554,2989.1,2988.3,2.4512]
[1767101169937,4.22303702,2989.6,2988.2,0.00489927]
[1767101169938,2.3534,2990.4,2989.1,2.4512]
[1767101170157,2.3534,2990.4,2989.3,2.4512]
[1767101170352,0.878,2990.6,2989.5,2.4512]
[1767101170526,2.3554,2990.5,2989.5,2.4512]
[1767101170942,2.3554,2990.5,2989.5,1.79576035]
[1767101171126,0.23554,2990.4,2989.7,2.4512]
[1767101171326,1.11354,2990.4,2989.7,2.4512]
[1767101171540,0.878,2990.4,2989.7,2.4512]
[1767101173256,0.002,2990.5,2989.7,2.4512]
[1767101173427,0.878,2990.4,2989.7,2.4512]
[1767101174836,0.002,2990.5,2989.7,2.4512]
[1767101175033,0.88,2990.5,2989.8,2.4512]
[1767101175734,0.32334,2990.4,2989.8,2.4512]
[1767101176136,2.26799863,2991.0,2990.0,2.3148]
[1767101176332,2.281,2991.3,2990.1,0.01007201]
[1767101176532,2.281,2991.2,2990.4,2.3148]
[1767101177475,0.878,2991.3,2990.5,2.3148]
[1767101177688,2.281,2991.5,2990.5,2.3148]
[1767101177982,0.2283,2991.3,2990.5,2.3148]
[1767101178138,0.878,2991.5,2990.5,2.3148]
[1767101178337,2.281,2991.3,2990.5,2.3148]
[1767101179353,2.281,2991.3,2990.6,2.3148]
[1767101179837,0.002,2991.4,2990.6,2.3148]
[1767101180039,2.281,2991.3,2990.6,2.3148]
[1767101180238,2.281,2991.1,2990.3,5.65884915]
[1767101180666,2.281,2991.0,2990.0,2.3148]
[1767101180873,2.281,2991.0,2990.3,2.3148]
[1767101181059,3.159,2991.0,2990.3,2.3148]
[1767101181362,3.159,2991.0,2990.4,2.3148]
[1767101181561,3.49773,2991.0,2990.4,2.3148]
[1767101182413,2.281,2990.9,2990.0,5.65917849]
[1767101182706,2.281,2990.9,2990.1,3.37780144]
[1767101182861,2.281,2990.9,2990.0,2.3148]
[1767101183067,0.349773,2990.9,2990.0,2.32487201]
[1767101183268,0.002,2991.4,2990.4,2.3148]
[1767101183610,2.283,2991.4,2990.5,2.3148]
[1767101183767,2.281,2991.2,2990.5,2.3148]
[1767101184787,0.002,2991.4,2990.5,2.3148]
[1767101184788,0.88,2991.4,2990.5,2.3148]
[1767101184990,0.002,2991.4,2990.5,2.34823922]
[1767101185193,2.283,2991.4,2990.7,2.3148]
[1767101185396,2.283,2991.4,2990.6,0.90463019]
[1767101185569,2.283,2991.4,2990.3,2.3148]
[1767101185765,2.283,2991.4,2990.4,3.37745872]
[1767101185992,2.281,2991.2,2990.5,3.34388844]
[1767101186188,2.281,2991.2,2990.3,2.3148]
[1767101186470,2.5971,2991.2,2990.6,0.5]
[1767101186685,2.5971,2991.2,2990.3,2.3148]
[1767101186996,2.5971,2991.2,2990.4,0.001]
[1767101187170,2.5971,2991.2,2990.4,2.3158]
[1767101187371,2.281,2991.0,2990.4,2.3158]
[1767101187692,2.281,2991.0,2990.2,5.6924339]
[1767101187892,2.281,2991.0,2990.2,2.34824257]
[1767101188465,2.281,2991.0,2990.3,3.34408669]
[1767101188665,2.281,2991.0,2990.2,5.69243285]
[1767101188996,2.5091,2990.9,2990.2,2.3148]
[1767101189364,2.5091,2990.9,2990.1,0.878]
[1767101189365,2.5091,2990.9,2989.8,2.3148]
[1767101189596,2.281,2990.7,2989.5,2.3148]
[1767101190279,2.281,2990.7,2989.5,3.34497085]
[1767101190482,2.281,2990.5,2989.6,2.3148]
[1767101190665,2.281,2990.5,2989.6,3.34488624]
[1767101190870,2.281,2990.5,2989.8,2.3148]
[1767101191394,2.281,2990.5,2989.4,4.22308931]
[1767101191695,2.281,2990.5,2989.5,2.3148]
[1767101191897,0.25969,2990.4,2989.5,2.3148]
[1767101192294,2.54069,2990.4,2989.5,2.3148]
[1767101192992,2.281,2990.2,2989.2,0.001]
[1767101194199,2.281,2990.2,2989.2,0.03445376]
[1767101194397,2.281,2990.0,2989.2,0.001]
[1767101194774,2.281,2989.9,2989.2,0.001]
[1767101194969,2.281,2989.8,2988.6,2.3148]
[1767101195174,6.0995621,2989.9,2988.7,2.34825936]
[1767101195175,2.281,2989.6,2988.7,2.34825936]
[1767101195402,2.281,2989.4,2988.7,0.03345936]
[1767101195604,2.281,2989.4,2988.5,0.0334616]
[1767101196273,2.281,2989.4,2988.6,3.3460148]
[1767101196475,2.281,2989.4,2988.7,0.03345936]
[1767101196873,2.281,2989.4,2988.4,5.66100759]
[1767101197201,2.281,2989.4,2988.5,3.94570695]
[1767101197402,2.281,2989.4,2988.5,3.94569503]
[1767101197602,2.281,2989.4,2988.5,0.59956236]
[1767101197816,2.281,2989.4,2988.5,0.0334616]
[1767101197980,2.281,2990.3,2989.1,2.3148]
[1767101198305,2.281,2990.3,2989.3,2.32487201]
[1767101198493,2.281,2990.3,2989.5,2.3148]
[1767101198801,2.281,2990.3,2989.6,2.3148]
[1767101199680,2.27610073,2990.3,2989.6,2.3148]
[1767101201278,2.27610073,2990.3,2989.6,2.34824929]
[1767101201703,2.281,2990.6,2989.7,2.3148]
[1767101201880,2.281,2990.4,2989.7,2.3148]
[1767101202081,0.03348537,2990.3,2989.7,2.3148]
[1767101203194,2.31448537,2990.3,2989.7,2.3148]
[1767101203786,2.31448537,2990.3,2989.4,0.23583258]
[1767101204186,2.31448537,2990.3,2989.2,0.03345376]
[1767101204404,2.281,2990.2,2989.2,2.3148]
[1767101204611,2.31448537,2990.1,2989.2,2.3148]
[1767101205108,2.31448537,2990.1,2989.3,2.3148]
[1767101205885,2.31448537,2990.1,2989.3,2.34825264]
[1767101206086,2.33978537,2990.1,2989.5,2.3107]
[1767101206606,2.3063,2990.1,2989.5,2.3107]
[1767101207721,0.878,2990.2,2989.5,2.3107]
[1767101208008,2.34178537,2990.4,2989.6,2.34414929]
[1767101208214,0.03548537,2990.4,2989.6,2.8796279]
[1767101209494,0.03059069,2990.4,2989.7,2.3107]
[1767101210714,3.34350545,2990.9,2989.7,2.3107]
[1767101211019,3.34369879,2990.7,2989.7,2.3107]
[1767101211190,2.72846988,2990.6,2989.7,2.3107]
[1767101211785,2.72846988,2990.6,2989.1,4.718]
[1767101211990,2.72846988,2990.6,2989.2,2.3107]
[1767101213209,6.68784484,2990.5,2989.2,2.3107]
[1767101213411,2.3063,2990.4,2989.4,0.5]
[1767101213721,2.3063,2990.2,2988.8,2.3107]
[1767101213923,2.3063,2990.2,2988.2,0.01007201]
[1767101213924,2.3063,2989.0,2988.2,0.01007201]
[1767101214095,0.23063,2988.9,2988.6,2.32077201]
[1767101214286,0.878,2989.0,2988.6,2.3107]
[1767101214696,0.878,2989.0,2988.7,0.01007201]
[1767101215419,0.878,2989.2,2988.6,2.3107]
[1767101216213,0.878,2989.2,2988.7,0.01007201]
[1767101216932,2.3063,2990.2,2988.8,2.3107]
[1767101217101,2.3063,2989.6,2988.8,2.3107]
[1767101217303,3.1843,2989.5,2988.8,2.3107]
[1767101217712,6.52937483,2989.5,2988.8,2.3107]
[1767101218436,2.3063,2989.4,2988.8,2.3107]
[1767101218597,0.65293748,2989.3,2988.8,2.3107]
[1767101219131,2.95923748,2989.3,2988.5,2.3107]
[1767101219298,2.95923748,2989.3,2988.7,2.3107]
[1767101220195,0.65293748,2989.3,2988.8,0.04353025]
[1767101220495,5.6505579,2990.2,2989.3,2.3107]
[1767101220695,2.3063,2990.0,2989.2,0.01007201]
[1767101221021,2.3063,2990.0,2989.0,2.32077201]
[1767101221225,2.3063,2990.0,2989.0,0.01007201]
[1767101221423,2.3063,2989.8,2988.9,2.3107]
[1767101221803,2.4466,2989.6,2988.9,2.3107]
[1767101222329,2.4466,2989.6,2989.0,2.33097201]
[1767101222902,2.4466,2989.6,2989.0,2.3209]
[1767101224320,2.4466,2990.2,2989.2,2.3209]
[1767101224497,2.4466,2990.2,2989.4,2.3209]
[1767101224698,0.878,2990.1,2989.4,2.3209]
[1767101225129,2.4466,2990.0,2989.4,2.3209]
[1767101226501,5.79108727,2990.0,2989.4,2.3209]
[1767101226815,6.7924227,2990.0,2989.4,2.3209]
[1767101227215,3.44793543,2990.0,2989.4,2.3209]
[1767101228214,0.878,2990.1,2989.4,2.3209]
[1767101228835,5.79079516,2990.3,2989.6,2.3209]
[1767101228836,2.4466,2990.3,2989.6,2.3209]
[1767101229012,2.4466,2990.3,2989.7,0.01007201]
[1767101229218,0.002,2990.4,2989.8,2.3209]
[1767101234541,2.4486,2990.4,2989.8,2.3209]
[1767101236040,0.66705335,2990.3,2989.8,2.3209]
[1767101236718,2.4691,2990.2,2989.8,2.3209]
[1767101238138,2.4691,2990.2,2989.4,2.4422]
[1767101238704,2.4691,2990.2,2989.3,0.01007201]
[1767101238910,2.4691,2990.1,2989.4,2.4422]
[1767101239135,3.0504405,2990.0,2989.4,2.4422]
[1767101239338,2.4691,2990.0,2989.4,2.4422]
[1767101242418,0.002,2990.4,2989.8,2.4422]
[1767101242645,6.0995621,2991.6,2989.7,0.01007201]
[1767101242646,3.34493842,2991.4,2990.0,2.4422]
[1767101242916,3.3471,2990.9,2990.0,2.4422]
[1767101243556,6.69063252,2990.9,2990.0,2.4422]
[1767101243848,0.66926325,2990.8,2990.0,2.4422]
[1767101244149,3.13836325,2990.8,2990.0,2.4422]
[1767101245448,6.4820431,2990.8,2990.0,2.4422]
[1767101246134,0.002,2990.6,2990.0,2.4422]
[1767101247759,3.13836325,2990.8,2989.8,2.4422]
[1767101247940,3.13836325,2990.8,2990.0,2.4422]
[1767101248250,4.01285703,2990.8,2990.0,2.4422]
[1767101248457,2.4691,2990.7,2990.0,2.4422]
[1767101248977,2.4691,2990.7,2989.7,0.01007201]
[1767101249136,2.4691,2990.7,2989.8,2.4422]
[1767101249338,2.4691,2990.6,2989.4,0.001]
[1767101249662,2.4691,2990.5,2989.4,2.4432]
[1767101249864,2.4691,2990.3,2989.3,0.878]
[1767101250360,2.4691,2990.3,2989.4,2.4422]
[1767101250557,2.4691,2990.1,2989.4,2.4422]
[1767101250760,2.4691,2990.1,2989.1,0.001]
[1767101250959,2.4691,2990.1,2988.6,3.3202]
[1767101251467,2.4691,2989.8,2988.6,3.3202]
[1767101251765,2.4691,2989.6,2988.5,0.001]
[1767101251976,2.4691,2989.4,2988.5,0.001]
[1767101252964,2.4691,2989.4,2988.2,0.879]
[1767101253389,2.4691,2989.4,2988.0,2.4432]
[1767101253390,2.4691,2989.2,2988.0,2.43769619]
[1767101253663,2.4691,2989.2,2987.7,0.88807201]
[1767101253664,2.4691,2989.0,2987.8,2.4422]
[1767101254449,2.4691,2989.0,2988.0,0.001]
[1767101254629,2.4691,2988.8,2987.8,2.4422]
[1767101255278,2.4691,2988.7,2987.5,0.878]
[1767101255435,2.4691,2988.5,2987.6,1.9304]
[1767101255736,0.878,2988.6,2987.3,0.001]
[1767101255737,2.4691,2988.2,2987.3,0.001]
[1767101256164,2.4691,2988.2,2987.3,0.01773416]
[1767101256841,2.4691,2988.2,2987.3,0.35528558]
[1767101257191,2.4691,2988.2,2987.4,0.01007201]
[1767101257348,2.4691,2988.2,2987.5,0.01673192]
[1767101257548,2.4691,2988.3,2987.5,0.01673192]
[1767101257782,2.4691,2988.3,2987.4,0.01007201]
[1767101257988,2.80381,2988.3,2987.2,0.00456611]
[1767101260668,2.4691,2988.2,2987.2,0.00456611]
[1767101260960,2.4691,2988.2,2986.9,0.01007201]
[1767101261990,2.4691,2988.2,2987.1,0.001]
[1767101262286,2.4691,2988.2,2986.8,0.001]
[1767101262453,2.4691,2988.0,2986.8,0.001]
[1767101262654,2.4691,2987.8,2986.8,0.001]
[1767101263049,2.4691,2987.7,2986.5,0.00356402]
[1767101263474,2.4691,2987.7,2986.5,3.3519335]
[1767101263683,2.4691,2987.7,2986.7,3.34815268]
[1767101263887,2.4691,2987.7,2986.6,0.33529335]
[1767101264573,2.4691,2987.7,2986.6,3.68358031]
[1767101265366,2.4691,2988.0,2987.1,0.01007201]
[1767101265565,2.4691,2988.5,2987.2,2.4422]
[1767101265894,2.510927,2988.5,2987.4,2.4422]
[1767101266588,2.2966,2988.4,2987.4,2.4422]
[1767101266780,2.2966,2988.2,2987.4,2.4422]
[1767101267359,0.0418326,2988.1,2987.4,2.4422]
[1767101267686,0.878,2988.4,2987.3,0.3330272]
[1767101267687,0.0418298,2988.3,2987.6,2.4602]
[1767101267895,2.3384298,2988.3,2987.6,2.4602]
[1767101272058,2.3384298,2988.3,2987.5,0.27752272]
[1767101272294,2.3384298,2988.3,2987.4,2.4602]
[1767101273373,2.3384298,2988.3,2987.5,2.4602]
[1767101273701,2.2966,2988.7,2987.5,2.4602]
[1767101273878,2.2966,2988.5,2987.5,2.4602]
[1767101274079,2.3384284,2988.4,2987.5,2.4602]
[1767101274399,2.3384284,2988.4,2987.7,2.4602]
[1767101274700,2.2966,2988.4,2987.7,2.4602]
[1767101275076,0.041827,2988.5,2987.7,2.4602]
[1767101275267,2.3384256,2988.6,2987.7,2.4602]
[1767101276071,0.002,2988.3,2987.7,2.4602]
[1767101276390,0.002,2988.3,2987.9,2.4602]
[1767101277265,0.0438298,2988.3,2987.9,2.4602]
[1767101277468,0.002,2988.3,2987.9,2.4602]
[1767101277868,2.2966,2989.1,2987.5,2.4253]
[1767101278064,2.2966,2988.9,2987.7,2.4253]
[1767101278270,2.3683,2988.7,2987.9,2.335]
[1767101278683,0.0418256,2988.6,2987.9,2.335]
[1767101279080,2.4101256,2988.6,2987.9,2.335]
[1767101279585,0.6520227,2988.8,2987.9,2.335]
[1767101279905,5.71384236,2989.1,2987.9,2.335]
[1767101280201,2.3683,2989.0,2987.9,2.335]
[1767101282175,2.3683,2988.9,2987.9,2.335]
[1767101284584,0.878,2988.8,2987.9,2.335]
[1767101284788,2.3683,2988.7,2987.9,2.335]
[1767101284989,2.3683,2988.7,2988.0,0.0334672]
[1767101285195,3.2463,2988.7,2988.1,2.335]
[1767101285700,3.2463,2989.0,2988.1,2.335]
[1767101286004,2.3683,2988.9,2988.1,2.335]
[1767101286203,2.3683,2988.9,2988.1,2.5685]
[1767101286781,2.3703,2989.1,2988.1,2.5685]
[1767101286986,0.878,2989.0,2988.1,2.5685]
[1767101290102,0.002,2989.1,2988.3,2.335]
[1767101290313,2.3683,2989.3,2988.3,1.5035]
[1767101290500,3.34516468,2989.4,2988.3,1.5035]
[1767101290501,2.93964647,2989.2,2988.3,1.5035]
[1767101291305,2.3683,2989.2,2988.3,1.5035]
[1767101292516,2.3683,2989.4,2988.3,1.5035]
[1767101292688,0.002,2989.2,2988.3,1.5035]
[1767101292888,2.3703,2989.2,2988.3,1.5035]
[1767101296203,2.3703,2989.2,2988.2,2.3815]
[1767101296412,2.3703,2989.2,2988.3,1.765]
[1767101298440,2.458,2989.1,2987.5,1.765]
[1767101298613,2.458,2989.1,2987.5,2.643]
[1767101298794,2.458,2989.1,2987.6,1.765]
[1767101300814,2.458,2988.9,2987.6,1.765]
[1767101300995,2.458,2988.7,2987.7,0.2644]
[1767101302820,2.458,2988.7,2987.6,1.765]
[1767101302994,2.458,2988.6,2987.5,0.879]
[1767101303311,2.458,2988.6,2987.6,1.765]
[1767101308726,2.458,2988.9,2987.8,1.765]
[1767101309020,2.458,2988.9,2988.0,1.765]
[1767101309191,3.03856382,2988.9,2988.2,1.765]
[1767101312722,3.03856382,2988.9,2988.2,1.765]
[1767101315308,2.458,2988.8,2987.6,1.765]
[1767101316740,2.458,2988.7,2987.8,1.765]
[1767101320237,2.458,2988.7,2988.0,1.765]
[1767101323144,2.458,2988.6,2988.0,1.765]
[1767101323438,2.458,2988.4,2988.0,1.765]
[1767101324054,2.458,2988.4,2987.7,1.765]
[1767101326439,3.34631021,2988.4,2987.7,1.765]
[1767101326740,2.4974,2988.3,2987.7,1.765]
[1767101326927,2.4974,2988.6,2988.0,1.765]
[1767101334949,2.4974,2988.6,2988.0,1.766]
[1767101335157,3.08392401,2988.6,2988.0,1.766]
[1767101335953,2.4994,2988.6,2988.0,1.766]
[1767101338055,2.4994,2988.6,2988.3,1.765]
[1767101338252,0.002,2988.6,2988.3,1.765]
[1767101340470,0.002,2988.7,2988.2,4.89232905]
[1767101340650,2.3143,2988.9,2988.3,1.761]
[1767101341561,2.87849139,2988.8,2988.3,1.761]
[1767101344661,0.002,2988.6,2988.3,1.761]
[1767101346470,2.3143,2988.6,2988.3,1.761]
[1767101347166,2.3143,2988.6,2988.1,1.761]
[1767101348666,2.3143,2988.6,2988.2,1.761]
[1767101348879,0.002,2988.6,2988.3,1.761]
[1767101349377,2.3123,2988.5,2988.2,0.66543291]
[1767101349678,2.3123,2988.5,2987.6,0.001]
[1767101349864,2.3123,2988.5,2987.6,0.879]
[1767101350179,2.3123,2988.5,2987.6,2.3523]
[1767101350379,2.3123,2988.5,2987.7,2.3513]
[1767101353474,2.3123,2988.5,2987.7,7.24362905]
[1767101354474,2.3123,2988.5,2987.8,2.3513]
[1767101357151,2.87852671,2988.5,2987.8,2.3513]
[1767101361086,2.87852671,2988.5,2987.6,8.14382905]
[1767101361478,2.87852671,2988.5,2987.6,5.77132905]
[1767101361664,2.87852671,2988.5,2987.6,8.14382905]
[1767101361992,2.3123,2988.5,2987.7,7.26482905]
[1767101363575,2.3123,2988.5,2987.8,2.3725]
[1767101366390,2.4003,2988.2,2987.6,2.3735]
[1767101369678,2.4003,2988.2,2987.8,0.001]
[1767101374902,2.4003,2988.2,2987.7,2.3725]
[1767101375206,2.4003,2988.0,2987.7,2.3725]
[1767101377407,2.4003,2988.0,2987.6,0.001]
[1767101378078,2.4003,2988.0,2987.6,2.3735]
[1767101378271,2.4003,2988.0,2987.6,0.001]
[1767101380605,2.4003,2988.0,2987.6,2.3735]
[1767101381472,2.4003,2988.4,2987.6,2.3735]
[1767101381786,2.4003,2988.2,2987.6,2.3735]
[1767101382686,3.3481852,2988.5,2987.8,2.3725]
[1767101382687,2.4023,2988.5,2987.8,2.3725]
[1767101385512,2.4003,2988.4,2987.8,2.3725]
[1767101387585,2.4542,2988.3,2987.8,2.3725]
[1767101387813,2.4542,2988.3,2987.7,0.878]
[1767101388030,2.4542,2988.3,2987.7,3.1553]
[1767101388608,3.03444783,2988.3,2987.7,2.2773]
[1767101388984,2.4542,2988.3,2987.7,2.2773]
[1767101391886,2.4542,2988.3,2987.9,0.5]
[1767101392096,2.4542,2988.3,2987.9,2.7773]
[1767101392395,2.4542,2988.3,2987.9,2.2773]
[1767101393630,0.002,2988.5,2987.9,2.2773]
[1767101393631,2.4562,2988.5,2987.9,2.2773]
[1767101393802,0.58042825,2988.4,2987.9,2.2773]
[1767101394387,0.002,2988.3,2987.9,2.2773]
[1767101398322,0.002,2988.6,2988.0,4.89380735]
[1767101398503,0.002,2988.6,2988.1,2.3093]
[1767101398815,2.4562,2988.7,2988.2,2.3093]
[1767101399890,0.002,2988.7,2988.2,2.3093]
[1767101400086,2.3542,2988.9,2987.8,2.3093]